bitfinex/quotes_SOLUSD_20250829
["timestamp","ask_amount","ask_price","bid_price","bid_amount"]
[1756494323119,50.72079629,202.43,202.41,0.88]
[1756494324032,9.84079629,202.42,202.41,0.2]
[1756494324436,50.72079629,202.43,202.41,0.88]
[1756494324614,9.84079629,202.45,202.41,5.82044973]
[1756494325002,9.84079629,202.45,202.42,0.68]
[1756494325203,9.84079629,202.45,202.43,0.68]
[1756494325409,0.68,202.51,202.44,0.68]
[1756494325410,9.84079629,202.47,202.44,0.68]
[1756494325626,9.84079629,202.47,202.41,14.98124602]
[1756494325627,9.84079629,202.48,202.43,13.59559401]
[1756494325848,9.84079629,202.48,202.44,0.68]
[1756494326129,50.72079629,202.49,202.45,0.68]
[1756494326299,9.84079629,202.56,202.46,0.68]
[1756494326506,9.84079629,202.53,202.47,9.84079629]
[1756494326711,9.84079629,202.53,202.48,0.68]
[1756494326934,40.88,202.55,202.5,9.84079629]
[1756494327103,9.84079629,202.55,202.51,0.68]
[1756494327299,9.84079629,202.58,202.52,10.52079629]
[1756494327728,40.88,202.59,202.54,9.84079629]
[1756494327912,9.84079629,202.6,202.55,0.68]
[1756494328120,9.84079629,202.6,202.56,0.68]
[1756494329007,40.94,202.62,202.56,0.68]
[1756494329215,9.84079629,202.57,202.56,0.68]
[1756494329410,9.84079629,202.57,202.51,13.59559401]
[1756494329411,9.84079629,202.58,202.53,0.68]
[1756494329731,0.06,202.62,202.57,23.4363903]
[1756494329914,0.06,202.62,202.58,10.52079629]
[1756494330326,0.06,202.62,202.59,0.68]
[1756494330519,0.06,202.62,202.6,10.52079629]
[1756494330719,0.06,202.62,202.61,23.4363903]
[1756494330919,0.06,202.62,202.61,24.1263903]
[1756494331333,0.06,202.62,202.61,14.28559401]
[1756494331524,0.06,202.62,202.61,24.1263903]
[1756494331732,0.06,202.62,202.61,29.06198084]
[1756494332515,0.06,202.64,202.63,49.4363903]
[1756494332915,0.06,202.64,202.63,50.1263903]
[1756494333831,1e-08,202.64,202.63,55.06149369]
[1756494335535,1e-08,202.64,202.63,45.2206974]
[1756494335721,1e-08,202.64,202.63,55.06149369]
[1756494337438,1e-08,202.64,202.63,49.4363903]
[1756494337623,1e-08,202.64,202.56,101.78224064]
[1756494337624,1e-08,202.64,202.61,13.59559401]
[1756494338138,9.8407963,202.64,202.6,13.59559401]
[1756494339019,9.84079629,202.63,202.58,0.69]
[1756494339337,1e-08,202.64,202.58,0.69]
[1756494339338,9.84079629,202.62,202.58,4.9361954]
[1756494339929,9.84079629,202.62,202.56,90.3763903]
[1756494339930,9.8407963,202.64,202.59,29.06228293]
[1756494340143,9.84079629,202.62,202.57,9.84079629]
[1756494340333,9.84079629,202.62,202.58,13.59559401]
[1756494340730,9.84079629,202.62,202.57,23.4363903]
[1756494340931,9.84079629,202.62,202.57,24.1263903]
[1756494341236,9.84079629,202.61,202.57,18.53198231]
[1756494341442,9.84079629,202.62,202.58,0.69]
[1756494341645,9.84079629,202.63,202.58,0.69]
[1756494341835,9.84079629,202.63,202.57,28.3727786]
[1756494342031,9.84079629,202.63,202.57,29.0627786]
[1756494342216,9.8407963,202.64,202.58,9.84079629]
[1756494342417,9.84079629,202.63,202.57,29.0627786]
[1756494343031,9.84079629,202.62,202.57,29.0627786]
[1756494343350,9.84079629,202.58,202.56,79.6]
[1756494343842,9.84079629,202.58,202.54,54.47559401]
[1756494344343,9.84079629,202.59,202.54,59.41287622]
[1756494344540,0.72,202.61,202.55,0.69]
[1756494344738,9.84079629,202.59,202.55,0.69]
[1756494345137,9.84079629,202.59,202.54,59.41287622]
[1756494345335,9.84079629,202.6,202.55,0.69]
[1756494345628,9.84079629,202.6,202.54,69.25367251]
[1756494345835,9.84079629,202.6,202.56,0.69]
[1756494346242,9.8407963,202.64,202.59,4.93607779]
[1756494346546,1e-08,202.64,202.6,14.28559401]
[1756494346748,1e-08,202.64,202.61,0.69]
[1756494347243,1e-08,202.64,202.6,93.19559401]
[1756494347549,9.84079629,202.61,202.6,79.6]
[1756494347723,10.56079629,202.61,202.6,79.6]
[1756494348457,15.49638683,202.61,202.6,79.6]
[1756494348746,15.49638683,202.61,202.56,0.03]
[1756494348957,9.84079629,202.57,202.56,0.03]
[1756494349261,19.68159258,202.57,202.56,0.03]
[1756494349450,0.72,202.57,202.56,0.03]
[1756494349633,10.56079629,202.57,202.56,0.03]
[1756494350034,26.0,202.54,202.53,0.03]
[1756494350233,26.0,202.54,202.51,0.03]
[1756494350438,9.84079629,202.52,202.51,0.03]
[1756494350650,0.72,202.56,202.51,0.03]
[1756494351250,9.84079629,202.53,202.51,0.03]
[1756494351454,9.84079629,202.54,202.51,0.03]
[1756494352126,0.72,202.59,202.52,0.69]
[1756494352327,25.93287259,202.64,202.54,4.93729633]
[1756494352328,0.78,202.62,202.54,4.93729633]
[1756494352559,9.84079629,202.6,202.55,9.84079629]
[1756494352735,9.84079629,202.6,202.56,0.69]
[1756494353846,0.06,202.62,202.57,0.69]
[1756494354036,0.06,202.62,202.58,0.69]
[1756494354450,0.06,202.62,202.59,4.93607779]
[1756494355334,9.90079629,202.62,202.57,0.69]
[1756494355747,9.84079629,202.58,202.52,14.77858021]
[1756494355954,9.84079629,202.56,202.52,4.93778392]
[1756494356460,9.84079629,202.57,202.53,0.69]
[1756494356647,9.84079629,202.58,202.54,4.93729633]
[1756494356959,9.84079629,202.59,202.54,4.93729633]
[1756494357139,9.84079629,202.61,202.55,10.53079629]
[1756494357550,9.84079629,202.6,202.55,0.69]
[1756494357759,9.84079629,202.59,202.55,0.69]
[1756494358058,10.56079629,202.59,202.53,14.77831314]
[1756494358459,4.9954105,202.62,202.53,14.77831314]
[1756494358662,9.84079629,202.6,202.55,28.37344287]
[1756494358843,9.90079629,202.62,202.56,10.53079629]
[1756494359048,0.06,202.62,202.57,9.84079629]
[1756494359363,26.0,202.55,202.51,0.03]
[1756494359655,9.84079629,202.52,202.51,0.03]
[1756494360254,10.56079629,202.52,202.51,0.03]
[1756494360987,9.84079629,202.52,202.51,0.03]
[1756494361135,10.56079629,202.52,202.51,0.03]
[1756494361837,26.0,202.52,202.51,0.03]
[1756494362047,36.56079629,202.52,202.51,0.03]
[1756494362253,77.62079629,202.52,202.41,13.79559401]
[1756494362458,9.84079629,202.43,202.41,13.79559401]
[1756494362769,9.84079629,202.45,202.42,0.71]
[1756494362936,9.84079629,202.44,202.41,0.2]
[1756494363133,9.84079629,202.42,202.41,0.2]
[1756494363345,26.72,202.49,202.41,5.85039727]
[1756494363551,9.84079629,202.45,202.41,5.85039727]
[1756494363751,9.84079629,202.44,202.41,0.91]
[1756494364158,9.84079629,202.43,202.41,0.91]
[1756494364357,31.65853914,202.49,202.41,0.91]
[1756494364559,9.84079629,202.48,202.42,24.1463903]
[1756494364868,9.84079629,202.48,202.44,13.59559401]
[1756494365035,9.84079629,202.49,202.44,13.59559401]
[1756494365236,3.96634433,202.61,202.46,23.4363903]
[1756494365440,9.84079629,202.52,202.48,13.59559401]
[1756494365641,9.84079629,202.51,202.48,14.30559401]
[1756494365849,9.84079629,202.51,202.46,23.4363903]
[1756494366046,9.84079629,202.47,202.41,0.2]
[1756494366256,9.84079629,202.43,202.41,0.2]
[1756494366855,0.72,202.46,202.41,0.2]
[1756494366856,9.84079629,202.42,202.41,0.2]
[1756494367069,4.9400249,202.43,202.41,0.2]
[1756494367278,9.84079629,202.42,202.41,0.2]
[1756494369555,9.84079629,202.45,202.41,5.85046736]
[1756494369957,9.84079629,202.44,202.41,5.85046736]
[1756494370282,9.84079629,202.43,202.41,0.91]
[1756494370583,9.84079629,202.42,202.41,0.2]
[1756494371277,67.16,202.48,202.41,0.91]
[1756494371664,5.65777791,202.53,202.42,24.1463903]
[1756494371847,9.84079629,202.49,202.44,23.4363903]
[1756494372051,9.84079629,202.5,202.46,13.59559401]
[1756494372248,41.16,202.52,202.41,97.09146431]
[1756494372550,9.84079629,202.5,202.46,0.71]
[1756494372750,9.84079629,202.5,202.47,0.71]
[1756494372948,9.84079629,202.5,202.47,5.64893897]
[1756494373380,9.84079629,202.5,202.47,5.64897335]
[1756494373553,41.16,202.52,202.47,5.64897335]
[1756494373749,9.90079629,202.51,202.48,0.71]
[1756494373954,9.84079629,202.49,202.45,13.59559401]
[1756494374176,9.84079629,202.49,202.45,14.30559401]
[1756494374378,9.84079629,202.48,202.45,14.30559401]
[1756494374577,9.84079629,202.5,202.46,0.71]
[1756494374877,0.06,202.51,202.49,4.93851548]
[1756494375087,0.06,202.51,202.49,5.64851548]
[1756494375879,0.06,202.51,202.5,0.71]
[1756494376280,0.06,202.51,202.5,24.1463903]
[1756494376587,0.06,202.56,202.54,13.59559401]
[1756494376787,0.06,202.62,202.59,13.59559401]
[1756494376965,0.06,202.62,202.59,23.4363903]
[1756494377291,0.06,202.62,202.6,0.71]
[1756494377578,0.06,202.62,202.61,49.4363903]
[1756494377991,0.06,202.62,202.61,55.08198084]
[1756494380254,1e-08,202.64,202.61,55.08198084]
[1756494380485,1e-08,202.64,202.63,23.4363903]
[1756494380885,1e-08,202.64,202.63,24.1463903]
[1756494381380,1e-08,202.64,202.63,24.63990063]
[1756494381587,1e-08,202.64,202.63,14.79910434]
[1756494381775,1e-08,202.64,202.63,24.63990063]
[1756494382671,1e-08,202.64,202.63,29.57500402]
[1756494382890,1e-08,202.64,202.63,29.08149369]
[1756494384376,1e-08,202.64,202.63,96.10149369]
[1756494384699,1e-08,202.64,202.63,70.10149369]
[1756494387875,1e-08,202.65,202.64,93.195594]
[1756494388089,9.84079629,202.74,202.73,20.0]
[1756494388285,9.84079629,202.75,202.73,20.0]
[1756494389025,9.84079629,202.77,202.75,20.0]
[1756494389191,9.84079629,202.76,202.75,20.0]
[1756494389513,9.84079629,202.77,202.75,20.0]
[1756494390012,9.84079629,202.8,202.77,20.0]
[1756494390216,9.84079629,202.81,202.79,20.0]
[1756494390392,9.84079629,202.82,202.79,20.0]
[1756494390786,9.84079629,202.83,202.81,20.0]
[1756494390989,10.12079629,202.84,202.81,20.0]
[1756494391221,9.84079629,202.83,202.81,20.0]
[1756494391720,9.84079629,202.82,202.81,20.0]
[1756494392029,9.84079629,202.84,202.81,20.0]
[1756494392188,10.12079629,202.84,202.81,20.0]
[1756494392632,9.84079629,202.84,202.81,20.0]
[1756494393112,9.84079629,202.83,202.81,20.0]
[1756494393319,9.84079629,202.84,202.81,20.0]
[1756494393517,0.28,202.86,202.81,20.0]
[1756494393721,9.84079629,202.84,202.81,20.0]
[1756494393894,9.84079629,202.83,202.81,20.0]
[1756494394295,0.28,202.85,202.81,20.0]
[1756494394503,9.84079629,202.83,202.81,20.0]
[1756494395201,9.84079629,202.82,202.81,20.0]
[1756494395398,9.84079629,202.83,202.81,20.0]
[1756494395606,9.84079629,202.84,202.81,20.0]
[1756494395787,9.84079629,202.83,202.81,20.0]
[1756494395988,10.12079629,202.82,202.81,20.0]
[1756494396220,9.84079629,202.82,202.81,20.0]
[1756494396728,33.17615797,202.87,202.81,20.7]
[1756494397018,9.84079629,202.84,202.83,20.0]
[1756494397393,10.12079629,202.84,202.83,20.0]
[1756494397589,9.84079629,202.84,202.81,20.0]
[1756494397811,9.84079629,202.82,202.79,99.59999999]
[1756494398010,0.28,202.83,202.72,0.7]
[1756494398011,9.84079629,202.8,202.77,20.0]
[1756494398319,9.84079629,202.78,202.77,20.0]
[1756494399705,26.0,202.84,202.79,20.0]
[1756494400018,26.0,202.84,202.8,0.7]
[1756494400019,9.84079629,202.83,202.8,0.7]
[1756494400194,9.84079629,202.83,202.79,20.0]
[1756494400386,9.84079629,202.8,202.79,20.0]
[1756494402894,26.0,202.84,202.79,24.93119447]
[1756494403108,9.84079629,202.81,202.79,24.93119447]
[1756494403319,9.84079629,202.81,202.79,20.0]
[1756494403739,9.84079629,202.8,202.79,20.0]
[1756494404726,9.84079629,202.8,202.77,20.03]
[1756494404926,9.84079629,202.78,202.77,20.03]
[1756494405544,4.93023714,202.83,202.77,20.03]
[1756494405851,9.84079629,202.78,202.77,20.03]
[1756494406050,9.84079629,202.79,202.77,25.66169601]
[1756494406557,9.84079629,202.81,202.79,20.0]
[1756494406845,9.84079629,202.81,202.8,0.7]
[1756494407155,9.84079629,202.83,202.81,20.0]
[1756494407322,9.84079629,202.82,202.81,20.0]
[1756494407915,33.23615797,202.87,202.85,20.0]
[1756494408315,43.07695426,202.87,202.85,61.4]
[1756494408547,33.23615797,202.87,202.85,61.4]
[1756494409060,33.23615797,202.87,202.86,41.42]
[1756494409846,33.23615797,202.87,202.86,46.34950803]
[1756494410425,33.23615797,202.87,202.86,69.78589833]
[1756494410631,7.56160876,202.87,202.86,69.78589833]
[1756494410917,0.1,202.9,202.89,59.59559401]
[1756494411124,0.1,202.9,202.89,110.1563903]
[1756494411348,0.1,202.9,202.89,110.8563903]
[1756494411726,0.1,202.93,202.92,18.52364447]
[1756494411927,1e-08,202.93,202.92,69.06444076]
[1756494412145,1e-08,202.93,202.92,69.76444076]
[1756494412750,1e-08,202.93,202.92,59.92364447]
[1756494412953,1e-08,202.93,202.92,69.76444076]
[1756494414152,1e-08,202.93,202.92,59.88364447]
[1756494414353,1e-08,202.93,202.92,69.72444076]
[1756494414859,1e-08,202.93,202.92,29.06444076]
[1756494415151,1e-08,202.93,202.92,54.25559401]
[1756494415531,1e-08,202.93,202.92,40.66]
[1756494416959,1e-08,202.93,202.92,120.25999999]
[1756494417424,1e-08,202.93,202.92,79.59999999]
[1756494417626,1e-08,202.93,202.92,120.19999999]
[1756494417858,1e-08,202.93,202.92,59.12364447]
[1756494418150,1e-08,202.93,202.92,68.96444076]
[1756494418339,1e-08,202.93,202.92,54.19559401]
[1756494418742,1e-08,202.93,202.92,59.12364447]
[1756494419067,1e-08,202.93,202.92,69.66444076]
[1756494420245,1e-08,202.93,202.91,20.0]
[1756494420442,1e-08,202.93,202.92,40.56]
[1756494420836,1e-08,202.93,202.92,64.6563903]
[1756494422438,1e-08,202.96,202.95,59.59559401]
[1756494422649,1e-08,202.96,202.95,109.9963903]
[1756494422852,0.1,203.05,203.04,20.0]
[1756494423159,0.1,203.05,203.04,60.56]
[1756494423939,0.1,203.05,203.04,70.40079629]
[1756494424136,0.1,203.05,203.04,84.6563903]
[1756494424570,0.1,203.05,203.04,89.5815282]
[1756494424735,0.1,203.05,203.04,79.74073191]
[1756494425069,0.06,203.13,203.12,33.59559401]
[1756494425275,0.06,203.13,203.12,83.9563903]
[1756494425778,0.06,203.13,203.12,84.6163903]
[1756494425935,0.06,203.13,203.12,74.77559401]
[1756494426138,0.06,203.13,203.12,110.6163903]
[1756494426374,0.06,203.13,203.12,70.0963903]
[1756494426676,0.06,203.13,203.12,115.5995884]
[1756494426863,0.06,203.13,203.12,105.75879211]
[1756494427065,0.06,203.13,203.12,115.5995884]
[1756494427782,0.06,203.13,203.12,75.0195884]
[1756494427947,0.06,203.13,203.12,115.5995884]
[1756494428148,0.06,203.13,203.12,65.17879211]
[1756494428462,0.06,203.13,203.12,115.5795884]
[1756494428653,0.06,203.13,203.12,105.73879211]
[1756494428837,0.06,203.13,203.12,115.5795884]
[1756494429568,0.06,203.13,203.12,75.0195884]
[1756494429763,0.06,203.13,203.12,115.5595884]
[1756494429993,0.06,203.13,203.12,105.71879211]
[1756494430165,0.06,203.13,203.12,75.0195884]
[1756494430351,0.06,203.13,203.12,43.4363903]
[1756494430549,0.06,203.13,203.12,33.59559401]
[1756494430873,0.74,203.13,203.12,20.0]
[1756494431254,0.74,203.13,203.12,89.5795884]
[1756494431255,0.06,203.13,203.12,89.5795884]
[1756494432368,0.06,203.13,203.12,89.5995884]
[1756494432569,0.06,203.13,203.12,79.09879211]
[1756494432769,0.06,203.13,203.12,88.9395884]
[1756494433152,0.06,203.13,203.12,48.3595884]
[1756494433475,0.06,203.13,203.12,74.15559401]
[1756494433651,0.06,203.13,203.12,33.59559401]
[1756494433850,0.06,203.13,203.12,20.0]
[1756494434150,0.74,203.13,203.12,60.54]
[1756494434550,0.06,203.13,203.12,89.5595884]
[1756494435068,0.06,203.13,203.12,88.8995884]
[1756494435361,0.06,203.13,203.12,79.09879211]
[1756494435554,0.06,203.13,203.12,33.59559401]
[1756494435756,0.06,203.13,203.12,74.27559401]
[1756494435963,0.06,203.13,203.12,79.19879211]
[1756494436173,0.06,203.13,203.12,89.0395884]
[1756494437046,0.06,203.13,203.12,89.6995884]
[1756494437252,0.68,203.27,203.25,20.0]
[1756494437515,35.54,203.39,203.25,20.0]
[1756494437516,9.84079629,203.28,203.26,40.66]
[1756494437775,4.91690431,203.38,203.26,40.66]
[1756494437975,0.68,203.37,203.31,20.0]
[1756494438463,1.972241,203.4,203.32,40.7]
[1756494438464,9.84079629,203.33,203.32,40.7]
[1756494438773,10.52079629,203.33,203.32,40.7]
[1756494439187,0.1,203.34,203.32,40.7]
[1756494439352,0.1,203.34,203.33,20.0]
[1756494440449,0.78,203.34,203.33,60.68]
[1756494440870,0.1,203.34,203.33,60.68]
[1756494441303,0.1,203.34,203.31,60.66]
[1756494441304,10.62079629,203.34,203.31,60.66]
[1756494441468,9.84079629,203.32,203.31,60.66]
[1756494441667,10.52079629,203.32,203.31,60.66]
[1756494441975,0.1,203.34,203.33,20.0]
[1756494442166,0.1,203.34,203.33,60.66]
[1756494443575,10.62079629,203.34,203.33,20.0]
[1756494444100,0.78,203.34,203.33,20.0]
[1756494444267,10.62079629,203.34,203.31,20.0]
[1756494444462,9.84079629,203.32,203.31,60.68]
[1756494444667,10.52079629,203.32,203.29,60.66]
[1756494444863,0.1,203.34,203.29,20.0]
[1756494445086,0.1,203.34,203.32,20.0]
[1756494445396,0.1,203.34,203.33,40.66]
[1756494445784,10.62079629,203.34,203.3,20.0]
[1756494445978,9.84079629,203.31,203.3,20.0]
[1756494446290,0.1,203.34,203.33,20.0]
[1756494446492,0.1,203.34,203.33,60.76]
[1756494446674,10.62079629,203.34,203.33,20.0]
[1756494447195,0.1,203.34,203.33,20.0]
[1756494447395,9.94079629,203.34,203.33,20.0]
[1756494447972,10.62079629,203.34,203.33,20.0]
[1756494448173,0.1,203.34,203.33,20.0]
[1756494449207,10.62079629,203.34,203.31,60.76]
[1756494449496,0.68,203.33,203.29,20.0]
[1756494449798,9.84079629,203.3,203.29,60.7]
[1756494450395,0.68,203.32,203.29,60.7]
[1756494450580,9.94079629,203.34,203.29,65.61907281]
[1756494450787,0.1,203.34,203.31,20.0]
[1756494451094,0.71,203.33,203.31,60.72]
[1756494451299,9.84079629,203.32,203.31,60.72]
[1756494451499,9.84079629,203.33,203.31,60.72]
[1756494453898,0.1,203.34,203.31,60.72]
[1756494454097,10.55079629,203.33,203.31,60.72]
[1756494454302,9.84079629,203.32,203.31,60.72]
[1756494455006,0.06,203.33,203.31,60.72]
[1756494455178,9.84079629,203.32,203.31,60.72]
[1756494457199,9.84079629,203.32,203.28,0.67]
[1756494457200,15.46915159,203.32,203.28,20.0]
[1756494457393,9.84079629,203.29,203.28,51.9]
[1756494457605,0.71,203.31,203.28,20.0]
[1756494457784,9.84079629,203.29,203.28,20.0]
[1756494458598,9.84079629,203.29,203.24,20.0]
[1756494458902,0.71,203.31,203.21,13.59559401]
[1756494458903,0.71,203.31,203.26,20.0]
[1756494459104,9.84079629,203.28,203.27,0.67]
[1756494459409,0.71,203.32,203.28,20.0]
[1756494459591,9.84079629,203.29,203.28,20.67]
[1756494459978,0.06,203.33,203.31,20.0]
[1756494460184,9.84079629,203.32,203.31,20.0]
[1756494460381,10.55079629,203.32,203.29,20.0]
[1756494460604,9.84079629,203.3,203.29,20.0]
[1756494460805,0.06,203.33,203.3,20.0]
[1756494461101,9.84079629,203.32,203.3,20.67]
[1756494461306,9.90079629,203.33,203.31,41.25]
[1756494461490,0.06,203.33,203.32,20.67]
[1756494462117,0.06,203.33,203.32,20.0]
[1756494462601,9.90079629,203.33,203.32,20.67]
[1756494462779,0.06,203.33,203.32,61.25]
[1756494462984,9.90079629,203.33,203.32,61.25]
[1756494463409,0.06,203.33,203.32,66.1683553]
[1756494466614,0.06,203.33,203.32,66.0683553]
[1756494467712,0.06,203.33,203.32,25.5883553]
[1756494468012,9.50079629,203.35,203.34,20.0]
[1756494468217,9.50079629,203.35,203.34,60.42]
[1756494469011,9.50079629,203.35,203.3,20.0]
[1756494469216,9.84079629,203.31,203.3,20.0]
[1756494469412,9.84079629,203.31,203.3,60.4]
[1756494470022,5.62791907,203.34,203.3,60.4]
[1756494470197,9.84079629,203.32,203.3,60.4]
[1756494470594,10.55079629,203.31,203.3,60.4]
[1756494470795,9.84079629,203.31,203.3,60.4]
[1756494471210,0.06,203.36,203.32,20.0]
[1756494471413,9.84079629,203.33,203.32,20.0]
[1756494471717,10.55079629,203.33,203.3,60.4]
[1756494472022,9.84079629,203.31,203.3,60.4]
[1756494472222,9.84079629,203.31,203.3,60.38]
[1756494472424,9.84079629,203.32,203.3,60.38]
[1756494472718,9.84079629,203.32,203.3,60.36]
[1756494473499,5.62767908,203.35,203.32,20.03]
[1756494473705,9.84079629,203.33,203.32,20.03]
[1756494474836,0.77,203.35,203.32,20.03]
[1756494475134,0.06,203.35,203.34,20.0]
[1756494476314,9.90079629,203.35,203.34,20.0]
[1756494477211,0.06,203.35,203.34,60.95]
[1756494477622,9.90079629,203.35,203.34,60.95]
[1756494477818,9.90079629,203.35,203.34,60.28]
[1756494478406,15.52842599,203.35,203.32,0.03]
[1756494478605,9.84079629,203.33,203.32,40.29]
[1756494478811,10.55079629,203.33,203.32,0.03]
[1756494479409,6.81902416,203.33,203.32,0.03]
[1756494480127,11.73713757,203.33,203.32,0.03]
[1756494480514,26.0,203.3,203.29,0.03]
[1756494480723,38.21804832,203.3,203.29,0.03]
[1756494481031,32.10902416,203.3,203.29,0.03]
[1756494481341,9.77683815,203.3,203.29,0.03]
[1756494481638,9.77683815,203.31,203.29,20.03]
[1756494482006,9.77683815,203.3,203.29,20.03]
[1756494482511,30.97763349,203.35,203.29,20.71]
[1756494482512,9.77683815,203.32,203.29,20.71]
[1756494482733,9.77683815,203.31,203.29,20.03]
[1756494483134,26.06,203.35,203.29,20.03]
[1756494483318,9.83683815,203.35,203.32,24.91821772]
[1756494483633,9.83683815,203.35,203.32,25.59833645]
[1756494483815,0.06,203.35,203.34,20.0]
[1756494484020,9.83683815,203.35,203.34,20.0]
[1756494484435,0.06,203.35,203.34,20.68]
[1756494484813,0.06,203.35,203.34,20.0]
[1756494485014,0.06,203.35,203.34,20.68]
[1756494485212,0.06,203.35,203.34,20.0]
[1756494485622,0.06,203.35,203.34,25.59787154]
[1756494485823,0.06,203.35,203.34,20.68]
[1756494486647,0.06,203.35,203.34,25.59787154]
[1756494487147,0.06,203.35,203.34,20.0]
[1756494487644,0.06,203.35,203.34,25.59787154]
[1756494487952,5.47506959,203.58,203.49,20.0]
[1756494488109,0.68,203.57,203.55,20.0]
[1756494488315,2.57101888,203.61,203.55,29.77683815]
[1756494489537,0.68,203.68,203.67,20.0]
[1756494489735,10.45683815,203.68,203.65,20.0]
[1756494489927,9.77683815,203.67,203.65,20.0]
[1756494490248,4.12,203.77,183.31,53.0349881]
[1756494490249,0.68,203.71,203.69,20.0]
[1756494490454,0.68,203.71,203.57,26.0]
[1756494490455,10.45683815,203.7,203.67,20.0]
[1756494490624,9.77683815,203.76,203.64,46.45683815]
[1756494490625,26.0,203.76,203.69,20.0]
[1756494490814,9.77683815,203.7,203.67,20.0]
[1756494491150,9.77683815,203.69,203.67,20.0]
[1756494491312,9.77683815,203.68,203.67,20.0]
[1756494491814,10.45683815,203.68,203.65,20.0]
[1756494492134,9.77683815,203.66,203.64,20.0]
[1756494492323,10.45683815,203.65,203.64,20.0]
[1756494493022,9.77683815,203.65,203.64,20.0]
[1756494493547,0.74,203.67,203.64,20.0]
[1756494493724,0.68,203.66,203.64,20.0]
[1756494493928,0.06,203.67,203.64,20.0]
[1756494494226,9.77683815,203.65,203.64,20.0]
[1756494495008,0.06,203.67,203.64,20.0]
[1756494495349,9.77683815,203.65,203.64,20.0]
[1756494495854,10.45683815,203.65,203.64,20.0]
[1756494496534,0.06,203.67,203.64,20.0]
[1756494496714,9.77683815,203.65,203.64,20.0]
[1756494499136,0.06,203.67,203.64,20.0]
[1756494499713,0.06,203.67,203.66,29.77683815]
[1756494501216,1e-08,203.67,203.66,43.86344659]
[1756494501423,1e-08,203.7,203.69,46.0]
[1756494501626,1e-08,203.7,203.69,104.82501518]
[1756494501855,1e-08,203.7,203.69,114.60185333]
[1756494502218,0.68,203.85,203.78,20.0]
[1756494502433,0.68,203.87,203.82,20.0]
[1756494502730,9.77683815,203.83,203.8,20.0]
[1756494502952,9.77683815,203.81,203.8,20.0]
[1756494503150,0.68,203.81,203.8,20.0]
[1756494503549,0.68,203.83,203.8,20.0]
[1756494503847,9.77683815,203.81,203.8,20.0]
[1756494504045,0.68,203.81,203.8,20.0]
[1756494504553,10.45683815,203.81,203.8,20.0]
[1756494505731,0.68,203.81,203.8,20.0]
[1756494505931,10.45683815,203.81,203.8,20.0]
[1756494506846,26.0,203.78,203.73,20.0]
[1756494507029,9.77683815,203.74,203.73,20.0]
[1756494507225,10.45683815,203.74,203.73,20.0]
[1756494507448,0.68,203.74,203.73,20.0]
[1756494507648,10.45683815,203.74,203.73,20.0]
[1756494508149,9.77683815,203.8,203.78,20.0]
[1756494508449,9.77683815,203.79,203.78,20.0]
[1756494508632,0.68,203.82,203.78,20.0]
[1756494508828,9.77683815,203.79,203.78,20.0]
[1756494509046,0.68,203.81,203.78,20.0]
[1756494509360,0.68,203.88,203.87,20.0]
[1756494509532,0.68,203.88,203.85,20.0]
[1756494509726,0.68,203.87,203.85,20.0]
[1756494509952,0.68,203.86,203.85,20.0]
[1756494510155,0.68,203.86,203.83,20.0]
[1756494510539,9.77683815,203.84,203.83,20.0]